fUSD/lending_fUSD_20240406
["ID","MTS","AMOUNT","RATE_DAILY","PERIOD"]
[321700597,1712410243242,-214.92301138,0.00021988,2]
[321700598,1712410243251,-500.0,0.00021989,2]
[321700599,1712410243260,-500.0,0.00021989,2]
[321700600,1712410243270,-500.0,0.00021989,2]
[321700601,1712410243279,-313.49,0.00021989,2]
[321700602,1712410243289,-500.0,0.00021989,2]
[321700603,1712410243299,-560.82,0.00021989,2]
[321700604,1712410243308,-441.89,0.00021989,2]
[321700605,1712410243317,-500.0,0.00021989,2]
[321700606,1712410243326,-518.04,0.00021989,2]
[321700607,1712410243335,-500.0,0.00021989,2]
[321700608,1712410243344,-500.0,0.00021989,2]
[321700609,1712410243353,-500.0,0.00021989,2]
[321700610,1712410243363,-500.0,0.00021989,2]
[321700611,1712410243372,-500.0,0.00021989,2]
[321700612,1712410243381,-648.16,0.00021989,2]
[321700613,1712410243390,-500.0,0.00021989,2]
[321700614,1712410243399,-505.23,0.00021989,2]
[321700615,1712410243408,-500.0,0.00021989,2]
[321700616,1712410243417,-500.0,0.00021989,2]
[321700617,1712410243426,-500.0,0.00021989,2]
[321700618,1712410243436,-500.0,0.00021989,2]
[321700619,1712410243446,-1980.56,0.00021989,2]
[321700620,1712410243455,-500.0,0.00021989,2]
[321700621,1712410243464,-500.0,0.00021989,2]
[321700622,1712410243474,-500.0,0.00021989,2]
[321700623,1712410243483,-500.0,0.00021989,2]
[321700624,1712410243493,-500.0,0.00021989,2]
[321700625,1712410243502,-500.0,0.00021989,2]
[321700626,1712410243511,-500.0,0.00021989,2]
[321700627,1712410243521,-500.0,0.00021989,2]
[321700628,1712410243530,-500.0,0.00021989,2]
[321700629,1712410243539,-500.0,0.00021989,2]
[321700630,1712410243549,-500.0,0.00021989,2]
[321700631,1712410243558,-500.0,0.00021989,2]
[321700632,1712410243567,-500.0,0.00021989,2]
[321700633,1712410243576,-500.0,0.00021989,2]
[321700634,1712410243585,-500.0,0.00021989,2]
[321700635,1712410243594,-222.98873633,0.00021989,2]
[321700636,1712410243603,-500.0,0.00021989,2]
[321700637,1712410243613,-155.15274576,0.00021989,2]
[321700638,1712410243622,-500.0,0.00021989,2]
[321700639,1712410243632,-500.0,0.00021989,2]
[321700640,1712410243641,-4621.4358708,0.0002199,2]
[321700641,1712410243651,-412.2960371,0.0002199,2]
[321700642,1712410243660,-23640.3001894,0.00021998,2]
[321700643,1712410243669,-34.31284433,0.00022,2]
[321700644,1712410243678,-1608.34018086,0.00022,2]
[321700645,1712410243688,-407.53727278,0.00022013,2]
[321700646,1712410243699,-2337.89532994,0.00022013,2]
[321700647,1712410243711,-180.52342756,0.00022013,2]
[321700648,1712410243720,-2387.54090625,0.00022013,2]
[321700649,1712410243729,-500.0,0.00022013,2]
[321700650,1712410243738,-500.0,0.00022013,2]
[321700651,1712410243747,-500.0,0.00022013,2]
[321700652,1712410243756,-331.64,0.00022013,2]
[321700653,1712410243766,-500.0,0.00022013,2]
[321700654,1712410243776,-500.0,0.00022013,2]
[321700655,1712410243785,-500.0,0.00022013,2]
[321700656,1712410243794,-628.27,0.00022013,2]
[321700657,1712410243804,-500.0,0.00022013,2]
[321700658,1712410243816,-500.0,0.00022013,2]
[321700659,1712410243826,-500.0,0.00022013,2]
[321700660,1712410243836,-559.8,0.00022013,2]
[321700661,1712410243846,-500.0,0.00022013,2]
[321700662,1712410243855,-500.0,0.00022013,2]
[321700663,1712410243866,-500.0,0.00022013,2]
[321700664,1712410243876,-1105.42,0.00022013,2]
[321700665,1712410243886,-500.0,0.00022013,2]
[321700666,1712410243896,-1656.35,0.00022013,2]
[321700667,1712410243906,-500.0,0.00022013,2]
[321700668,1712410243916,-500.0,0.00022013,2]
[321700669,1712410243926,-500.0,0.00022013,2]
[321700670,1712410243936,-500.0,0.00022013,2]
[321700671,1712410243945,-500.0,0.00022013,2]
[321700672,1712410243958,-500.0,0.00022013,2]
[321700673,1712410243967,-500.0,0.00022013,2]
[321700674,1712410243976,-500.0,0.00022013,2]
[321700675,1712410243984,-500.0,0.00022013,2]
[321700676,1712410243994,-543.82,0.00022013,2]
[321700677,1712410244003,-500.0,0.00022013,2]
[321700678,1712410244013,-500.0,0.00022013,2]
[321700679,1712410244022,-165.37702993,0.00022014,2]
[321700680,1712410244031,-188.63847172,0.00022014,2]
[321700681,1712410244040,-309.98182803,0.00022014,2]
[321700682,1712410244050,-500.0,0.00022014,2]
[321700683,1712410244060,-452.11698323,0.00022014,2]
[321700684,1712410244069,-384.9776226,0.00022014,2]
[321700685,1712410244078,-605.93,0.00022014,2]
[321700686,1712410244088,-545.91,0.00022014,2]
[321700687,1712410244097,-500.0,0.00022014,2]
[321700688,1712410244108,-479.35225259,0.00022014,2]
[321700689,1712410244117,-573.93,0.00022014,2]
[321700690,1712410244128,-8325.0,0.00022014,2]
[321700691,1712410244138,-500.0,0.00022014,2]
[321700692,1712410244147,-500.0,0.00022014,2]
[321700693,1712410244157,-500.0,0.00022014,2]
[321700694,1712410244166,-500.0,0.00022014,2]
[321700695,1712410244175,-500.0,0.00022014,2]
[321700696,1712410244185,-500.0,0.00022014,2]
[321700697,1712410244194,-150.0,0.00022014,2]
[321700698,1712410244203,-603.27145529,0.00022014,2]
[321700699,1712410244214,-534.28,0.00022014,2]
[321700700,1712410244223,-500.0,0.00022014,2]
[321700701,1712410244232,-500.0,0.00022014,2]
[321700702,1712410244241,-500.0,0.00022014,2]
[321700703,1712410244251,-500.0,0.00022014,2]
[321700704,1712410244260,-500.0,0.00022014,2]
[321700705,1712410244269,-500.0,0.00022014,2]
[321700706,1712410244279,-500.0,0.00022014,2]
[321700707,1712410244289,-500.0,0.00022014,2]
[321700708,1712410244299,-500.0,0.00022014,2]
[321700709,1712410244308,-500.0,0.00022014,2]
[321700710,1712410244318,-483.04554959,0.00022014,2]
[321700711,1712410244327,-500.0,0.00022014,2]
[321700712,1712410244336,-500.0,0.00022014,2]
[321700713,1712410244345,-500.0,0.00022014,2]
[321700714,1712410244354,-500.0,0.00022014,2]
[321700715,1712410244363,-500.0,0.00022014,2]
[321700716,1712410244372,-500.0,0.00022014,2]
[321700717,1712410244381,-500.0,0.00022014,2]
[321700718,1712410244391,-500.0,0.00022014,2]
[321700719,1712410244400,-500.0,0.00022014,2]
[321700720,1712410244409,-468.90291673,0.00022014,2]
[321700721,1712410244419,-500.0,0.00022014,2]
[321700722,1712410244428,-528.08802352,0.00022014,2]
[321700723,1712410244437,-500.0,0.00022014,2]
[321700724,1712410244447,-500.0,0.00022014,2]
[321700725,1712410244456,-500.0,0.00022014,2]
[321700726,1712410244466,-202.93744041,0.00022014,2]
[321700727,1712410244475,-500.0,0.00022014,2]
[321700728,1712410244484,-500.0,0.00022014,2]
[321700729,1712410244494,-502.06507963,0.00022014,2]
[321700730,1712410244503,-183.22568411,0.00022014,2]
[321700731,1712410244513,-500.0,0.00022014,2]
[321700732,1712410244522,-500.0,0.00022014,2]
[321700733,1712410244531,-500.0,0.00022014,2]
[321700734,1712410244540,-500.0,0.00022014,2]
[321700735,1712410244549,-500.0,0.00022014,2]
[321700736,1712410244559,-500.0,0.00022014,2]
[321700737,1712410244568,-500.0,0.00022014,2]
[321700738,1712410244578,-500.0,0.00022014,2]
[321700739,1712410244587,-500.0,0.00022014,2]
[321700740,1712410244596,-500.0,0.00022014,2]
[321700741,1712410244605,-500.0,0.00022014,2]
[321700742,1712410244615,-500.0,0.00022014,2]
[321700743,1712410244624,-500.0,0.00022014,2]
[321700744,1712410244633,-500.0,0.00022014,2]
[321700745,1712410244642,-500.0,0.00022014,2]
[321700746,1712410244653,-500.0,0.00022014,2]
[321700747,1712410244663,-500.0,0.00022014,2]
[321700748,1712410244672,-500.0,0.00022014,2]
[321700749,1712410244682,-343.66545463,0.00022014,2]
[321700750,1712410244691,-500.0,0.00022014,2]
[321700751,1712410244700,-524.96,0.00022014,2]
[321700752,1712410244710,-500.0,0.00022014,2]
[321700753,1712410244722,-500.0,0.00022014,2]
[321700754,1712410244732,-500.0,0.00022014,2]
[321700755,1712410244742,-500.0,0.00022014,2]
[321700756,1712410244752,-500.0,0.00022014,2]
[321700757,1712410244761,-500.0,0.00022014,2]
[321700758,1712410244770,-513.64,0.00022014,2]
[321700759,1712410244779,-209.8704641,0.00022014,2]
[321700760,1712410244788,-500.0,0.00022014,2]
[321700761,1712410244800,-591.46,0.00022014,2]
[321700762,1712410244809,-500.0,0.00022014,2]
[321700763,1712410244822,-3287.5,0.00022014,2]
[321700764,1712410244831,-500.0,0.00022014,2]
[321700765,1712410244841,-297.07,0.00022014,2]
[321700766,1712410244851,-175.84,0.00022014,2]
[321700767,1712410244861,-528.23,0.00022014,2]
[321700768,1712410244870,-500.0,0.00022014,2]
[321700769,1712410244879,-500.0,0.00022014,2]
[321700770,1712410244888,-166.68687492,0.00022176,2]
[321700771,1712410244898,-425.13544107,0.00022193,2]
[321700772,1712410244909,-1000.0,0.00022194,2]
[321700773,1712410244919,-5015.0,0.000222,2]
[321700774,1712410244928,-925.32014268,0.00022224,2]
[321700775,1712410244938,-2848.87397528,0.00022224,2]
[321700776,1712410244947,-238.64196047,0.00022292,2]
[321700777,1712410244956,-624.05493274,0.00022293,2]
[321700778,1712410244968,-500.0,0.00022293,2]
[321700779,1712410244977,-500.0,0.00022293,2]
[321700780,1712410244987,-500.0,0.00022293,2]
[321700781,1712410244996,-500.0,0.00022293,2]
[321700782,1712410245006,-166.36122248,0.00022293,2]
[321700783,1712410245016,-500.0,0.00022293,2]
[321700784,1712410245025,-500.0,0.00022293,2]
[321700785,1712410245035,-500.0,0.00022293,2]
[321700786,1712410245044,-500.0,0.00022293,2]
[321700787,1712410245054,-500.0,0.00022293,2]
[321700788,1712410245063,-500.0,0.00022293,2]
[321700789,1712410245073,-500.0,0.00022293,2]
[321700790,1712410245082,-500.0,0.00022293,2]
[321700791,1712410245092,-500.0,0.00022293,2]
[321700792,1712410245101,-500.0,0.00022293,2]
[321700793,1712410245111,-246.34428531,0.00022293,2]
[321700794,1712410245121,-500.0,0.00022293,2]
[321700795,1712410245130,-500.0,0.00022293,2]
[321700796,1712410245140,-500.0,0.00022293,2]
[321700797,1712410245344,-500.0,0.00022293,2]
[321700798,1712410245353,-500.0,0.00022293,2]
[321700799,1712410245363,-500.0,0.00022293,2]
[321700800,1712410245372,-500.0,0.00022293,2]
[321700801,1712410245382,-500.0,0.00022293,2]
[321700802,1712410245391,-500.0,0.00022293,2]
[321700803,1712410245400,-212.50514407,0.00022293,2]
[321700804,1712410245409,-500.0,0.00022293,2]
[321700805,1712410245418,-500.0,0.00022293,2]
[321700806,1712410245428,-500.0,0.00022293,2]
[321700807,1712410245437,-500.0,0.00022293,2]
[321700808,1712410245447,-500.0,0.00022293,2]
[321700809,1712410245456,-500.0,0.00022293,2]
[321700810,1712410245467,-505.98931148,0.00022293,2]
[321700811,1712410245476,-500.0,0.00022293,2]
[321700812,1712410245486,-500.0,0.00022293,2]
[321700813,1712410245495,-500.0,0.00022293,2]
[321700814,1712410245504,-500.0,0.00022293,2]
[321700815,1712410245513,-500.0,0.00022293,2]
[321700816,1712410245523,-509.61973292,0.00022293,2]
[321700817,1712410245532,-500.0,0.00022293,2]
[321700818,1712410245541,-500.0,0.00022293,2]
[321700819,1712410245550,-500.0,0.00022293,2]
[321700820,1712410245559,-500.0,0.00022293,2]
[321700821,1712410245568,-500.0,0.00022293,2]
[321700822,1712410245577,-500.0,0.00022293,2]
[321700823,1712410245586,-500.0,0.00022293,2]
[321700824,1712410245595,-500.0,0.00022293,2]
[321700825,1712410245604,-500.0,0.00022293,2]
[321700826,1712410245613,-323.8735423,0.00022293,2]
[321700827,1712410245621,-500.0,0.00022293,2]
[321700828,1712410245631,-575.17,0.00022293,2]
[321700829,1712410245640,-500.0,0.00022293,2]
[321700830,1712410245649,-382.27875985,0.00022293,2]
[321700831,1712410245659,-500.0,0.00022293,2]
[321700832,1712410245668,-518.1845949,0.00022293,2]
[321700833,1712410245677,-642.88262383,0.00022293,2]
[321700834,1712410245686,-500.0,0.00022293,2]
[321700835,1712410245695,-500.0,0.00022293,2]
[321700836,1712410245704,-500.0,0.00022293,2]
[321700837,1712410245714,-500.0,0.00022293,2]
[321700838,1712410245723,-500.0,0.00022293,2]
[321700839,1712410245731,-500.0,0.00022293,2]
[321700840,1712410245741,-500.0,0.00022293,2]
[321700841,1712410245750,-500.0,0.00022293,2]
[321700842,1712410245759,-468.63233899,0.00022293,2]
[321700843,1712410245768,-517.47366186,0.00022293,2]
[321700844,1712410245778,-152.53314889,0.00022293,2]
[321700845,1712410245787,-500.0,0.00022293,2]
[321700846,1712410245797,-500.0,0.00022293,2]
[321700847,1712410245806,-500.0,0.00022293,2]
[321700848,1712410245818,-500.0,0.00022293,2]
[321700849,1712410245828,-500.0,0.00022293,2]
[321700850,1712410245837,-533.09425261,0.00022293,2]
[321700851,1712410245847,-500.0,0.00022293,2]
[321700852,1712410245858,-500.0,0.00022293,2]
[321700853,1712410245867,-500.0,0.00022293,2]
[321700854,1712410245877,-500.0,0.00022293,2]
[321700855,1712410245939,-500.0,0.00022293,2]
[321700856,1712410245949,-500.0,0.00022293,2]
[321700857,1712410245959,-500.0,0.00022293,2]
[321700858,1712410245968,-524.45015466,0.00022293,2]
[321700859,1712410245978,-500.0,0.00022293,2]
[321700860,1712410245987,-500.0,0.00022293,2]
[321700861,1712410245996,-500.0,0.00022293,2]
[321700862,1712410246005,-527.91679563,0.00022293,2]
[321700863,1712410246014,-500.0,0.00022293,2]
[321700864,1712410246024,-500.0,0.00022293,2]
[321700865,1712410246033,-500.0,0.00022293,2]
[321700866,1712410246043,-500.0,0.00022293,2]
[321700867,1712410246052,-518.44512575,0.00022293,2]
[321700868,1712410246061,-500.0,0.00022293,2]
[321700869,1712410246070,-2628.7278,0.00022294,2]
[321700870,1712410246080,-151.0,0.00022294,7]
[321700871,1712410246089,-151.0,0.00022294,2]
[321700872,1712410246098,-151.0,0.00022294,2]
[321700873,1712410246107,-500.0,0.00022294,2]
[321700874,1712410246116,-500.0,0.00022294,2]
[321700875,1712410246126,-500.0,0.00022294,2]
[321700876,1712410246135,-500.0,0.00022294,2]
[321700877,1712410246144,-560.82,0.00022294,2]
[321700878,1712410246153,-500.0,0.00022294,2]
[321700880,1712410246162,-500.0,0.00022294,2]
[321700882,1712410246171,-500.0,0.00022294,2]
[321700884,1712410246180,-500.0,0.00022294,2]
[321700886,1712410246190,-500.0,0.00022294,2]
[321700888,1712410246199,-500.0,0.00022294,2]
[321700889,1712410246210,-477.35,0.00022294,2]
[321700890,1712410246219,-505.23,0.00022294,2]
[321700891,1712410246228,-500.0,0.00022294,2]
[321700892,1712410246238,-575.12686817,0.00022294,2]
[321700893,1712410246250,-249.91,0.00022294,2]
[321700894,1712410246260,-500.0,0.00022294,2]
[321700895,1712410246269,-1980.56,0.00022294,2]
[321700896,1712410246280,-500.0,0.00022294,2]
[321700897,1712410246289,-556.84,0.00022294,2]
[321700898,1712410246299,-500.0,0.00022294,2]
[321700899,1712410246308,-500.0,0.00022294,2]
[321700900,1712410246317,-500.0,0.00022294,2]
[321700901,1712410246326,-599.25,0.00022294,2]
[321700902,1712410246335,-500.0,0.00022294,2]
[321700903,1712410246345,-500.0,0.00022294,2]
[321700904,1712410246355,-151.0,0.00022295,7]
[321700905,1712410246365,-151.0,0.00022295,2]
[321700906,1712410246375,-151.0,0.00022295,2]
[321700907,1712410246384,-710.61604805,0.00022299,2]
[321700908,1712410246394,-710.61604804,0.000223,2]
[321700909,1712410246403,-207.93144023,0.000223,2]
[321700910,1712410246412,-207.94633197,0.000223,2]
[321700911,1712410246421,-153.39485539,0.000223,2]
[321700912,1712410246430,-710.61604804,0.000223,2]
[321700913,1712410246440,-1306.18276136,0.00022375,2]
[321700914,1712410246449,-339.77010499,0.0002239,2]
[321700915,1712410246458,-380.93290581,0.0002239,2]
[321700916,1712410246469,-500.0,0.0002239,2]
[321700917,1712410246478,-500.0,0.0002239,2]
[321700918,1712410246487,-500.0,0.0002239,2]
[321700919,1712410246497,-500.0,0.0002239,2]
[321700920,1712410246505,-500.0,0.0002239,2]
[321700921,1712410246514,-500.0,0.00022391,2]
[321700922,1712410246525,-500.0,0.00022391,2]
[321700923,1712410246534,-500.0,0.00022391,2]
[321700924,1712410246543,-500.0,0.00022391,2]
[321700925,1712410246552,-500.0,0.00022391,2]
[321700926,1712410246562,-500.0,0.00022391,2]
[321700927,1712410246571,-628.27,0.00022391,2]
[321700928,1712410246581,-500.0,0.00022391,2]
[321700929,1712410246590,-500.0,0.00022391,2]
[321700930,1712410246600,-500.0,0.00022391,2]
[321700931,1712410246609,-559.8,0.00022391,2]
[321700932,1712410246618,-500.0,0.00022391,2]
[321700933,1712410246627,-500.0,0.00022391,2]
[321700934,1712410246638,-500.0,0.00022391,2]
[321700935,1712410246649,-1105.42,0.00022391,2]
[321700936,1712410246658,-500.0,0.00022391,2]
[321700937,1712410246667,-1656.35,0.00022391,2]
[321700938,1712410246677,-500.0,0.00022391,2]
[321700939,1712410246686,-500.0,0.00022391,2]
[321700940,1712410246696,-500.0,0.00022391,2]
[321700941,1712410246705,-500.0,0.00022391,2]
[321700942,1712410246716,-327.83,0.00022391,2]
[321700943,1712410246725,-500.0,0.00022391,2]
[321700944,1712410246734,-500.0,0.00022391,2]
[321700945,1712410246743,-500.0,0.00022391,2]
[321700946,1712410246753,-500.0,0.00022391,2]
[321700947,1712410246763,-543.82,0.00022391,2]
[321700948,1712410246772,-500.0,0.00022391,2]
[321700949,1712410246782,-342.51,0.00022391,2]
[321700950,1712410246792,-8325.0,0.00022392,2]
[321700951,1712410246802,-649.72128459,0.00022392,2]
[321700952,1712410246811,-500.0,0.00022392,2]
[321700953,1712410246824,-150.0,0.00022392,2]
[321700954,1712410246834,-500.0,0.00022392,2]
[321700955,1712410246844,-500.0,0.00022392,2]
[321700956,1712410246854,-500.0,0.00022392,2]
[321700957,1712410246865,-500.0,0.00022392,2]
[321700958,1712410246876,-500.0,0.00022392,2]
[321700959,1712410246886,-500.0,0.00022392,2]
[321700960,1712410246898,-500.0,0.00022392,2]
[321700961,1712410246909,-500.0,0.00022392,2]
[321700963,1712410246921,-500.0,0.00022392,2]
[321700965,1712410246932,-500.0,0.00022392,2]
[321700967,1712410246942,-500.0,0.00022392,2]
[321700969,1712410246952,-500.0,0.00022392,2]
[321700971,1712410246964,-500.0,0.00022392,2]
[321700973,1712410246974,-500.0,0.00022392,2]
[321700976,1712410246984,-500.0,0.00022392,2]
[321700977,1712410246995,-500.0,0.00022392,2]
[321700978,1712410247006,-500.0,0.00022392,2]
[321700979,1712410247016,-500.0,0.00022392,2]
[321700980,1712410247026,-500.0,0.00022392,2]
[321700981,1712410247036,-500.0,0.00022392,2]
[321700982,1712410247046,-500.0,0.00022392,2]
[321700983,1712410247055,-500.0,0.00022392,2]
[321700984,1712410247065,-500.0,0.00022392,2]
[321700985,1712410247076,-500.0,0.00022392,2]
[321700986,1712410247086,-500.0,0.00022392,2]
[321700988,1712410247096,-500.0,0.00022392,2]
[321700989,1712410247119,-500.0,0.00022392,2]
[321700990,1712410247129,-500.0,0.00022392,2]
[321700991,1712410247139,-500.0,0.00022392,2]
[321700992,1712410247149,-500.0,0.00022392,2]
[321700993,1712410247160,-500.0,0.00022392,2]
[321700994,1712410247170,-500.0,0.00022392,2]
[321700995,1712410247180,-500.0,0.00022392,2]
[321700996,1712410247190,-500.0,0.00022392,2]
[321700997,1712410247200,-500.0,0.00022392,2]
[321700998,1712410247211,-500.0,0.00022392,2]
[321700999,1712410247221,-500.0,0.00022392,2]
[321701000,1712410247231,-500.0,0.00022392,2]
[321701001,1712410247243,-328.37829665,0.00022392,2]
[321701002,1712410247253,-500.0,0.00022392,2]
[321701003,1712410247263,-500.0,0.00022392,2]
[321701004,1712410247273,-500.0,0.00022392,2]
[321701005,1712410247283,-500.0,0.00022392,2]
[321701006,1712410247293,-500.0,0.00022392,2]
[321701007,1712410247303,-500.0,0.00022392,2]
[321701008,1712410247313,-500.0,0.00022392,2]
[321701009,1712410247323,-445.60988181,0.00022392,2]
[321701010,1712410247333,-513.64,0.00022392,2]
[321701011,1712410247344,-500.0,0.00022392,2]
[321701012,1712410247353,-500.0,0.00022392,2]
[321701013,1712410247363,-3287.5,0.00022392,2]
[321701014,1712410247374,-500.0,0.00022392,2]
[321701015,1712410247384,-500.0,0.00022392,2]
[321701016,1712410247395,-500.0,0.00022393,2]
[321701017,1712410247405,-500.0,0.00022393,2]
[321701018,1712410247416,-500.0,0.00022393,2]
[321701019,1712410247426,-297.974426,0.00022393,7]
[321701020,1712410247436,-151.0,0.00022393,2]
[321701021,1712410247445,-151.0,0.00022393,2]
[321701022,1712410247455,-500.0,0.00022395,2]
[321701023,1712410247468,-500.0,0.00022395,2]
[321701024,1712410247479,-500.0,0.00022395,2]
[321701025,1712410247491,-500.0,0.00022395,2]
[321701026,1712410247501,-500.0,0.00022395,2]
[321701027,1712410247512,-263.38975587,0.00022395,2]
[321701028,1712410247523,-500.0,0.00022395,2]
[321701029,1712410247533,-500.0,0.00022395,2]
[321701030,1712410247544,-175.93149232,0.00022395,2]
[321701031,1712410247554,-500.0,0.00022395,2]
[321701032,1712410247565,-500.0,0.00022395,2]
[321701033,1712410247575,-500.0,0.00022395,2]
[321701034,1712410247587,-500.0,0.00022395,2]
[321701035,1712410247598,-500.0,0.00022395,2]
[321701036,1712410247609,-500.0,0.00022395,2]
[321701037,1712410247621,-502.22,0.00022395,2]
[321701038,1712410247631,-500.0,0.00022395,2]
[321701039,1712410247641,-500.0,0.00022395,2]
[321701040,1712410247651,-500.0,0.00022395,2]
[321701041,1712410247662,-500.0,0.00022395,2]
[321701042,1712410247672,-500.0,0.00022395,2]
[321701043,1712410247683,-500.0,0.00022395,2]
[321701044,1712410247692,-500.0,0.00022395,2]
[321701045,1712410247702,-473.10471224,0.00022395,2]
[321701046,1712410247714,-500.0,0.00022395,2]
[321701047,1712410247724,-500.0,0.00022395,2]
[321701048,1712410247733,-500.0,0.00022395,2]
[321701049,1712410247744,-500.0,0.00022395,2]
[321701050,1712410247753,-500.0,0.00022395,2]
[321701051,1712410247765,-500.0,0.00022395,2]
[321701052,1712410247774,-500.0,0.00022395,2]
[321701053,1712410247785,-500.0,0.00022395,2]
[321701054,1712410247796,-500.0,0.00022395,2]
[321701055,1712410247806,-500.0,0.00022395,2]
[321701056,1712410247819,-500.0,0.00022395,2]
[321701057,1712410247831,-500.0,0.00022395,2]
[321701058,1712410247846,-500.0,0.00022395,2]
[321701059,1712410247857,-500.0,0.00022395,2]
[321701060,1712410247867,-500.0,0.00022395,2]
[321701061,1712410247878,-243.57,0.00022395,2]
[321701062,1712410247888,-375.93510637,0.00022395,2]
[321701063,1712410247900,-500.0,0.00022395,2]
[321701064,1712410247910,-500.0,0.00022395,2]
[321701065,1712410247921,-526.71215455,0.00022395,2]
[321701066,1712410247932,-500.0,0.00022395,2]
[321701067,1712410247943,-500.0,0.00022395,2]
[321701068,1712410247953,-222.98875321,0.00022395,2]
[321701069,1712410247965,-535.66115531,0.00022395,2]
[321701070,1712410247974,-500.0,0.00022395,2]
[321701071,1712410247984,-534.25524958,0.00022395,2]
[321701072,1712410247993,-505.21929289,0.00022395,2]
[321701073,1712410248003,-500.0,0.00022395,2]
[321701074,1712410248013,-500.0,0.00022395,2]
[321701075,1712410248023,-527.21017587,0.00022395,2]
[321701076,1712410248033,-533.29627397,0.00022395,2]
[321701077,1712410248043,-400.53,0.00022395,2]
[321701078,1712410248054,-500.0,0.00022395,2]
[321701079,1712410248066,-500.0,0.00022395,2]
[321701080,1712410248077,-500.0,0.00022395,2]
[321701081,1712410248087,-500.0,0.00022395,2]
[321701082,1712410248100,-280.79818526,0.00022395,2]
[321701083,1712410248110,-500.0,0.00022395,2]
[321701084,1712410248119,-500.0,0.00022396,2]
[321701085,1712410248129,-500.0,0.00022396,2]
[321701086,1712410248139,-500.0,0.00022396,2]
[321701087,1712410248150,-151.0,0.00022396,2]
[321701088,1712410248159,-151.0,0.00022396,2]
[321701089,1712410248169,-389.46,0.00022396,2]
[321701090,1712410248178,-311.69,0.00022396,2]
[321701091,1712410248188,-500.0,0.00022396,2]
[321701092,1712410248198,-642.43,0.00022396,2]
[321701093,1712410248208,-560.82,0.00022396,2]
[321701094,1712410248221,-604.69,0.00022396,2]
[321701095,1712410248232,-500.0,0.00022396,2]
[321701096,1712410248242,-500.0,0.00022396,2]
[321701097,1712410248252,-500.0,0.00022396,2]
[321701098,1712410248262,-401.02,0.00022396,2]
[321701099,1712410248272,-587.98,0.00022396,2]
[321701100,1712410248281,-505.23,0.00022396,2]
[321701101,1712410248292,-500.0,0.00022396,2]
[321701102,1712410248301,-500.0,0.00022396,2]
[321701103,1712410248312,-1980.56,0.00022396,2]
[321701104,1712410248322,-414.14,0.00022396,2]
[321701105,1712410248332,-546.77,0.00022396,2]
[321701106,1712410248342,-500.0,0.00022396,2]
[321701107,1712410248351,-500.0,0.00022396,2]
[321701108,1712410248361,-500.0,0.00022396,2]
[321701109,1712410248371,-500.0,0.00022396,2]
[321701110,1712410248381,-8325.0,0.00022397,2]